bitfinex/quotes_ETHUSD_20251214
["timestamp","ask_amount","ask_price","bid_price","bid_amount"]
[1765744903025,9.16497864,3091.6,3091.5,0.002]
[1765744917050,9.16991713,3091.6,3091.5,0.002]
[1765744921533,8.68671713,3091.6,3091.5,0.002]
[1765744921738,5.74160386,3091.6,3091.5,0.002]
[1765744922531,4.81340386,3091.6,3091.5,0.4838]
[1765744922731,4.32704638,3091.6,3091.5,0.9607]
[1765744922932,0.512,3091.6,3091.5,0.9607]
[1765744923132,3.28940299,3091.7,3091.5,0.9607]
[1765744923133,0.05491843,3091.7,3091.5,0.9607]
[1765744923447,0.05491843,3091.7,3091.6,0.9587]
[1765744923936,3.2893849,3091.7,3091.6,0.4818]
[1765744924134,3.94185849,3091.7,3091.6,0.4818]
[1765744924332,3.2893849,3091.7,3091.6,0.4818]
[1765744924542,3.2893849,3091.7,3091.6,0.9587]
[1765744924753,0.05491843,3091.7,3091.6,0.9587]
[1765744926459,3.2893849,3091.7,3091.6,0.9587]
[1765744927063,0.05491843,3091.7,3091.6,0.9587]
[1765744927234,3.2893849,3091.7,3091.6,0.9587]
[1765744928160,0.05491843,3091.7,3091.6,0.9587]
[1765744932438,3.2893849,3091.7,3091.6,0.9587]
[1765744933259,0.05491843,3091.7,3091.6,0.9587]
[1765744945855,3.2893849,3091.7,3091.6,0.9587]
[1765744947487,3.2893849,3091.7,3091.5,0.002]
[1765744947488,5.35205879,3091.7,3091.5,0.002]
[1765744947686,0.4996,3091.6,3091.5,0.002]
[1765744947988,3.73417109,3091.6,3091.5,0.002]
[1765744948673,3.23457109,3091.6,3091.5,0.4616]
[1765744949063,0.05491843,3091.7,3091.5,0.9395]
[1765744949263,0.05491843,3091.7,3091.6,0.9375]
[1765744950883,3.2893849,3091.7,3091.6,0.9375]
[1765744951082,0.05491843,3091.7,3091.6,0.9375]
[1765744951898,3.2893849,3091.7,3091.6,0.9375]
[1765744956257,3.2893849,3091.7,3091.6,0.4596]
[1765744956496,0.05491843,3091.7,3091.6,0.9375]
[1765744957161,0.001,3091.9,3091.6,0.9375]
[1765744957367,0.05491843,3091.8,3091.7,0.4779]
[1765744957767,0.05491843,3091.8,3091.7,0.9375]
[1765744957997,0.001,3091.9,3091.7,0.9375]
[1765744958199,0.001,3091.9,3091.8,0.9375]
[1765744960610,0.001,3091.9,3091.8,4.64025727]
[1765744964002,0.001,3091.9,3091.8,1.40589541]
[1765744964578,0.001,3091.9,3091.8,4.64025727]
[1765744966691,0.001,3091.9,3091.8,5.15225727]
[1765744967217,0.001,3091.9,3091.8,1.91789541]
[1765744967918,0.001,3091.9,3091.8,5.15225727]
[1765744969003,0.001,3091.9,3091.8,5.55776127]
[1765744973027,0.4621,3091.9,3091.5,0.002]
[1765744973227,0.001,3091.9,3091.8,0.4596]
[1765744974518,0.001,3091.9,3091.8,0.9375]
[1765744977030,0.001,3091.9,3091.8,1.4495]
[1765744978549,0.001,3091.9,3091.8,1.4515]
[1765744980965,0.001,3091.9,3091.8,6.50771148]
[1765744986272,0.001,3091.9,3091.8,5.99571148]
[1765744986463,0.001,3091.9,3091.8,10.18681286]
[1765744987472,0.001,3091.9,3091.8,10.18383689]
[1765744989753,0.001,3091.9,3091.8,10.18374921]
[1765744996290,0.001,3091.9,3091.8,9.67174921]
[1765744996593,0.001,3091.9,3091.8,10.18374921]
[1765744997351,0.001,3091.9,3091.8,13.69274921]
[1765745000978,0.001,3091.9,3091.8,13.18074921]
[1765745001577,0.001,3091.9,3091.8,13.69274921]
[1765745001758,0.001,3091.9,3091.8,13.18074921]
[1765745001958,0.001,3091.9,3091.8,13.69274921]
[1765745002484,0.001,3091.9,3091.8,13.18074921]
[1765745002960,0.001,3091.9,3091.8,13.69274921]
[1765745012803,0.001,3092.4,3091.9,0.405504]
[1765745013015,0.4985,3093.5,3092.5,0.4955]
[1765745013176,0.4985,3093.1,3092.7,4.65571702]
[1765745013375,0.4985,3093.0,3092.7,4.65571702]
[1765745013680,0.4314,3092.8,3092.7,4.65571702]
[1765745013983,0.001,3092.8,3092.7,4.65571702]
[1765745014972,0.001,3092.8,3092.7,5.15121702]
[1765745015178,0.001,3092.8,3092.7,6.27556828]
[1765745016200,0.001,3092.8,3092.7,9.50898891]
[1765745016405,0.4314,3092.8,3092.7,9.52548891]
[1765745018703,0.001,3092.8,3092.7,9.52548891]
[1765745019502,0.001,3092.8,3092.7,9.50898891]
[1765745019706,0.4314,3092.8,3092.7,9.52548891]
[1765745020573,0.001,3092.8,3092.7,10.02098891]
[1765745020772,0.001,3092.8,3092.7,10.50828891]
[1765745020978,0.001,3092.8,3092.7,13.52998891]
[1765745021505,0.001,3092.8,3092.7,14.02998891]
[1765745026120,0.001,3092.8,3092.7,14.02749307]
[1765745027091,0.001,3092.8,3092.7,14.51479307]
[1765745028318,0.5009,3092.8,3092.7,8.94724718]
[1765745028486,0.9994,3092.8,3092.7,13.12648907]
[1765745028693,0.9994,3092.8,3092.7,13.03199307]
[1765745029581,0.5009,3092.8,3092.7,8.85275118]
[1765745029782,0.5009,3092.8,3092.5,3.66724189]
[1765745029783,0.9957,3092.8,3092.5,3.66724189]
[1765745030015,0.0049,3092.7,3092.5,3.66724189]
[1765745030220,0.495,3092.6,3092.5,3.66724189]
[1765745030588,0.495,3092.6,3092.5,6.90287163]
[1765745030789,0.9935,3092.6,3092.5,3.23562974]
[1765745030998,0.9935,3092.6,3092.5,6.90287163]
[1765745032922,0.9935,3092.6,3092.5,3.66924189]
[1765745035521,0.001,3092.8,3092.6,3.63902918]
[1765745035719,0.001,3092.8,3092.7,1.48147929]
[1765745035896,0.001,3092.8,3092.7,1.96877929]
[1765745037122,0.001,3092.8,3092.7,2.09817406]
[1765745038027,0.001,3092.8,3092.7,5.33159469]
[1765745038194,0.001,3092.8,3092.7,10.38150215]
[1765745038716,0.001,3092.8,3092.7,6.71426026]
[1765745040593,0.001,3092.8,3092.7,10.22326026]
[1765745041925,0.001,3092.8,3092.7,10.73426026]
[1765745042129,0.001,3092.8,3092.7,10.22326026]
[1765745042295,0.001,3092.8,3092.7,10.73426026]
[1765745043921,0.001,3092.8,3092.7,9.73596026]
[1765745044108,0.001,3092.8,3092.7,10.23936026]
[1765745044304,0.001,3092.8,3092.7,10.70796026]
[1765745047398,0.001,3092.8,3092.7,14.37528226]
[1765745054438,0.001,3092.8,3092.7,13.90668226]
[1765745054622,0.001,3092.8,3092.7,14.37528226]
[1765745055334,0.001,3092.8,3092.7,13.86428226]
[1765745055537,0.001,3092.8,3092.7,14.37528226]
[1765745057732,0.001,3092.8,3092.7,13.86428226]
[1765745057906,0.001,3092.8,3092.7,14.37528226]
[1765745059641,0.4977,3092.8,3092.7,8.83495626]
[1765745059817,0.4977,3092.8,3092.7,7.32289592]
[1765745060026,0.4977,3092.8,3092.7,7.83389592]
[1765745060411,0.4977,3092.8,3092.7,8.23939992]
[1765745060613,0.4977,3092.8,3092.7,7.83389592]
[1765745060933,0.4977,3092.8,3092.7,8.23939992]
[1765745061240,0.4977,3092.8,3092.7,7.83389592]
[1765745062045,0.4977,3092.8,3092.7,8.23939992]
[1765745062251,0.9275,3092.8,3092.7,8.23939992]
[1765745068443,0.4977,3092.8,3092.7,8.23939992]
[1765745068850,0.9275,3092.8,3092.7,8.23939992]
[1765745070844,0.9275,3092.8,3092.7,7.72839992]
[1765745071052,0.9275,3092.8,3092.7,8.23939992]
[1765745075348,0.9275,3092.8,3092.7,7.14792463]
[1765745075661,0.9275,3092.8,3092.7,8.23939992]
[1765745076354,0.4977,3092.8,3092.7,8.23939992]
[1765745076551,0.001,3092.8,3092.7,8.23939992]
[1765745076852,0.9293,3092.8,3092.7,8.23939992]
[1765745077352,0.001,3092.8,3092.7,10.28396088]
[1765745078459,0.4434,3092.8,3092.7,9.80376088]
[1765745078954,0.9293,3092.8,3092.7,9.80376088]
[1765745080558,0.9293,3092.8,3092.7,8.23939992]
[1765745081754,0.9293,3092.8,3092.7,7.72839992]
[1765745081955,0.9293,3092.8,3092.7,8.23939992]
[1765745084866,0.001,3092.8,3092.7,8.71959992]
[1765745089437,0.4434,3092.8,3092.7,8.23939992]
[1765745090049,0.001,3092.8,3092.7,8.23939992]
[1765745090244,0.001,3092.8,3092.7,10.28396088]
[1765745090566,0.001,3092.8,3092.7,10.76116088]
[1765745091239,0.001,3092.8,3092.7,10.28396088]
[1765745096252,0.001,3092.8,3092.7,10.76116088]
[1765745096455,0.001,3092.8,3092.7,10.28396088]
[1765745096650,0.001,3092.8,3092.7,10.77396088]
[1765745097567,0.001,3092.8,3092.7,10.28396088]
[1765745098566,0.001,3092.8,3092.7,10.77396088]
[1765745099450,0.001,3092.8,3092.7,14.44191793]
[1765745100272,0.001,3092.8,3092.7,13.95191793]
[1765745104453,0.001,3092.8,3092.7,14.44191793]
[1765745105185,0.001,3093.2,3093.1,0.98597929]
[1765745105352,0.001,3093.2,3093.1,10.76868934]
[1765745105564,0.001,3093.2,3093.1,11.25868934]
[1765745106302,0.001,3093.2,3092.8,5.27554431]
[1765745106303,0.9292,3093.2,3092.8,1.76754431]
[1765745106594,0.2031,3092.9,3092.8,0.58047529]
[1765745106768,0.2031,3092.9,3092.8,4.73029537]
[1765745106961,0.6906,3092.9,3092.8,4.73029537]
[1765745107388,0.6906,3092.9,3092.8,8.39888942]
[1765745107575,0.6906,3092.9,3092.8,9.91292023]
[1765745108418,0.6906,3092.9,3092.8,1.51403081]
[1765745108566,0.6906,3092.9,3092.5,0.002]
[1765745108766,0.482,3092.6,3092.5,0.002]
[1765745109184,0.9228,3092.6,3092.5,0.002]
[1765745109468,0.9228,3092.6,3092.5,3.81610503]
[1765745111208,0.9228,3092.6,3092.5,0.58247529]
[1765745112871,0.9228,3092.6,3092.5,3.81610503]
[1765745114405,0.9228,3092.6,3092.5,0.58247529]
[1765745115304,0.9228,3092.6,3092.5,1.09347529]
[1765745117309,0.9228,3092.6,3092.5,4.32710503]
[1765745117904,0.9228,3092.6,3092.5,0.002]
[1765745122582,0.9228,3092.6,3092.5,0.513]
[1765745124613,0.482,3092.6,3092.5,0.513]
[1765745124794,0.482,3092.6,3092.5,3.74662974]
[1765745125517,0.9228,3092.6,3092.5,3.74662974]
[1765745126091,0.9228,3092.6,3092.5,0.513]
[1765745126304,0.9228,3092.6,3092.5,1.013]
[1765745134627,0.482,3092.6,3092.5,1.013]
[1765745135128,0.9228,3092.6,3092.5,1.013]
[1765745135513,0.9228,3092.6,3092.5,0.502]
[1765745135819,0.9228,3092.6,3092.5,1.013]
[1765745137992,0.482,3092.6,3092.5,1.013]
[1765745138520,0.482,3092.6,3092.5,4.24662974]
[1765745138709,0.001,3092.8,3092.5,4.70432974]
[1765745138891,0.001,3092.8,3092.5,5.17642974]
[1765745139091,0.001,3092.8,3092.5,4.70432974]
[1765745139288,0.4746,3092.8,3092.5,4.70432974]
[1765745143020,0.001,3092.8,3092.5,4.70432974]
[1765745143413,0.4746,3092.8,3092.5,4.70432974]
[1765745143722,0.001,3092.8,3092.5,4.70432974]
[1765745144096,0.001,3092.8,3092.5,5.17642974]
[1765745144623,0.001,3092.8,3092.5,4.70432974]
[1765745145720,0.001,3092.8,3092.5,8.21232974]
[1765745148901,0.4746,3092.8,3092.5,8.21232974]
[1765745149624,0.001,3092.8,3092.7,0.863204]
[1765745150729,0.001,3092.8,3092.7,4.56872463]
[1765745151633,0.001,3092.8,3092.7,8.07672463]
[1765745153004,0.001,3092.8,3092.7,4.371204]
[1765745154731,0.001,3092.8,3092.7,7.60462463]
[1765745155034,0.001,3092.8,3092.7,13.08783444]
[1765745156545,0.001,3092.8,3092.7,13.66830973]
[1765745164756,0.001,3092.8,3092.7,13.64920973]
[1765745166125,0.001,3092.8,3092.7,13.77859445]
[1765745167025,0.001,3092.8,3092.7,9.52610875]
[1765745167349,0.001,3092.8,3092.7,14.16020973]
[1765745167559,0.001,3092.8,3092.7,10.49010875]
[1765745172255,0.001,3092.8,3092.7,14.15833919]
[1765745174163,0.001,3093.2,3092.7,13.70533919]
[1765745174347,0.001,3093.3,3093.2,7.77753029]
[1765745174658,0.001,3093.3,3093.2,8.49163029]
[1765745174960,0.001,3093.3,3093.2,8.65370729]
[1765745175159,0.001,3093.3,3093.2,8.78306147]
[1765745175333,0.001,3093.3,3093.2,10.39501371]
[1765745176263,0.001,3093.3,3093.2,9.98446171]
[1765745176666,0.001,3093.3,3093.2,7.40048367]
[1765745176971,0.001,3093.3,3093.2,10.27744467]
[1765745177264,0.001,3093.3,3093.2,13.94567511]
[1765745178466,0.001,3093.3,3093.2,17.45367511]
[1765745179170,0.001,3093.3,3093.2,27.63564511]
[1765745179465,0.001,3093.3,3093.2,26.45889511]
[1765745179765,0.001,3093.9,3093.8,0.405504]
[1765745179954,0.6825,3095.0,3094.1,0.405504]
[1765745180131,0.6825,3095.0,3094.4,5.22670973]
[1765745180644,0.6825,3095.0,3094.4,8.91135399]
[1765745180846,0.001,3095.3,3094.4,8.91135399]
[1765745180847,0.4995,3095.3,3094.4,8.91135399]
[1765745181583,0.001,3094.6,3094.4,8.91135399]
[1765745181745,0.001,3094.6,3094.5,9.37320829]
[1765745181935,0.001,3095.3,3094.7,0.98597929]
[1765745182135,0.001,3095.3,3095.2,4.65420973]
[1765745182348,0.4995,3095.3,3095.2,0.98597929]
[1765745182549,0.9149,3095.3,3095.2,0.98597929]
[1765745182753,0.9149,3095.3,3095.2,1.49697929]
[1765745183439,0.9149,3095.3,3094.1,0.1827]
[1765745183757,0.55341843,3095.2,3094.4,3.2316405]
[1765745184065,0.05491843,3095.0,3094.5,0.58047529]
[1765745184266,0.05491843,3095.0,3094.4,3.2316405]
[1765745184267,0.6136,3094.5,3094.2,3.23182582]
[1765745184570,0.4154,3094.3,3094.1,3.23194793]
[1765745184764,0.4985,3094.4,3094.3,0.511]
[1765745184968,0.4293,3094.4,3094.3,0.511]
[1765745185175,0.9132,3094.4,3094.3,0.511]
[1765745185974,0.9132,3094.4,3093.9,3.23215024]
[1765745186155,0.9132,3094.4,3093.8,0.511]
[1765745186156,0.4245,3094.3,3093.8,0.511]
[1765745186361,0.6676,3093.9,3093.8,3.74327099]
[1765745186570,0.6676,3093.9,3093.8,4.32374628]
[1765745186762,1.1118,3093.9,3093.8,4.72925028]
[1765745187261,0.4844,3093.9,3093.8,4.72925028]
[1765745189578,0.4844,3093.9,3093.8,5.22925028]
[1765745189878,0.4844,3093.9,3093.8,0.5]
[1765745189879,1.1117,3093.9,3093.8,0.5]
[1765745190180,1.1117,3093.9,3093.5,0.511]
[1765745190181,1.546066,3093.9,3093.5,0.511]
[1765745190377,0.4823,3093.8,3093.6,0.405504]
[1765745190747,0.4484,3093.7,3093.6,0.405504]
[1765745191244,0.9304,3093.7,3093.6,0.405504]
[1765745196288,0.9304,3093.7,3093.6,3.913504]
[1765745196590,0.4484,3093.7,3093.6,3.913504]
[1765745196957,0.9304,3093.7,3093.6,3.913504]
[1765745199586,0.9304,3093.7,3093.6,4.413504]
[1765745204587,3.23174869,3094.3,3093.6,4.413504]
[1765745204802,0.4927,3093.7,3093.6,4.413504]
[1765745205268,0.975,3093.7,3093.6,4.413504]
[1765745206788,3.88374579,3094.2,3093.6,4.413504]
[1765745207160,0.4823,3094.1,3093.6,4.413504]
[1765745208188,0.4833,3094.6,3093.6,8.08173444]
[1765745208369,0.6805,3094.5,3093.7,0.405504]
[1765745208562,4.30335884,3094.5,3093.7,0.889404]
[1765745208762,0.4823,3094.4,3093.7,4.1217706]
[1765745209184,0.4823,3094.4,3093.7,0.889404]
[1765745209481,0.4484,3093.8,3093.7,0.405504]
[1765745213502,1.1114,3093.8,3093.6,4.008]
[1765745213810,0.4871,3093.7,3093.6,5.09947529]
[1765745213973,0.4871,3093.7,3093.6,1.59147529]
[1765745214618,0.0048,3093.7,3093.6,1.59147529]
[1765745214904,0.4871,3093.7,3093.6,0.5]
[1765745215104,3.71947547,3093.7,3093.5,0.002]
[1765745215303,1.15688424,3093.6,3093.5,0.002]
[1765745215466,1.63918424,3093.6,3093.5,0.002]
[1765745216075,5.43758262,3093.6,3093.5,0.002]
[1765745218070,6.01805791,3093.6,3093.5,0.002]
[1765745229436,9.68840323,3093.6,3093.5,0.002]
[1765745234892,6.01805791,3093.6,3093.5,0.002]
[1765745235096,9.68840323,3093.6,3093.5,0.002]
[1765745235300,13.76425255,3093.6,3093.5,0.002]
[1765745235627,4.25082061,3092.7,3092.6,0.002]
[1765745235783,5.60880267,3092.7,3092.6,0.002]
[1765745235982,6.10870267,3092.7,3092.6,0.002]
[1765745237002,13.01246862,3092.7,3092.6,0.002]
[1765745237203,0.0413,3092.3,3091.9,0.002]
[1765745237412,1.48587929,3092.6,3091.9,0.002]
[1765745237413,4.66892061,3092.0,3091.9,0.002]
[1765745237601,5.18691267,3092.0,3091.9,0.002]
[1765745237798,5.68681267,3092.0,3091.9,0.002]
[1765745243918,8.92096532,3092.0,3091.9,0.002]
[1765745244625,8.92496788,3092.0,3091.9,0.002]
[1765745248118,12.32896788,3092.0,3091.9,0.002]
[1765745248322,8.92496788,3092.0,3091.9,0.002]
[1765745248522,4.33262,3092.0,3091.9,0.4875]
[1765745248721,5.30542,3092.0,3091.9,0.002]
[1765745249223,5.77592,3092.0,3091.9,0.002]
[1765745253728,5.30542,3092.0,3091.9,0.002]
[1765745258309,5.30542,3092.0,3091.9,9.421e-05]
[1765745260535,9.45026788,3092.0,3091.9,9.421e-05]
[1765745261332,0.58047529,3091.9,3091.5,0.002]
[1765745261637,2.59102679,3091.9,3091.5,0.002]
[1765745263720,5.82528404,3091.9,3091.5,0.002]
[1765745264242,0.4572,3091.5,3091.4,0.00028428]
[1765745264544,0.9682,3091.5,3091.4,0.00028428]
[1765745264842,1.49286506,3091.5,3091.4,0.00028428]
[1765745265052,1.96336506,3091.5,3091.4,0.00028428]
[1765745266213,5.19804078,3091.5,3091.4,0.00028428]
[1765745268613,4.72754078,3091.5,3091.4,0.00028428]
[1765745269444,5.19804078,3091.5,3091.4,0.00028428]
[1765745270439,5.19804078,3091.5,3091.3,0.00010943]
[1765745270440,4.72754078,3091.5,3091.3,0.00010943]
[1765745270641,1.16365563,3091.4,3091.3,0.00010943]
[1765745271052,1.16365563,3091.4,3091.3,0.48560943]
[1765745272353,4.39843598,3091.4,3091.3,0.48560943]
[1765745272558,4.39843598,3091.4,3091.3,0.97600943]
[1765745272559,3.74578035,3091.4,3091.3,0.97600943]
[1765745275857,3.74578035,3091.4,3091.3,0.48560943]
[1765745276223,3.74578035,3091.4,3091.3,0.97600943]
[1765745278557,3.74678035,3091.4,3091.3,0.97600943]
[1765745281648,3.74678035,3091.4,3091.3,0.48560943]
[1765745283466,4.4504178,3091.4,3091.3,0.48560943]
[1765745284554,4.4504178,3091.4,3091.3,0.98070943]
[1765745285758,3.74678035,3091.4,3091.3,0.98070943]
[1765745288363,0.001,3091.4,3091.3,0.98070943]
[1765745289354,3.23578035,3091.4,3091.3,0.48560943]
[1765745290363,0.001,3091.4,3091.3,0.48560943]
[1765745290660,0.05591843,3091.4,3091.3,0.98070943]
[1765745292469,3.29069878,3091.4,3091.3,0.48560943]
[1765745293378,3.29069878,3091.4,3091.3,0.98070943]
[1765745293675,3.29069878,3091.4,3091.3,0.00010943]
[1765745293867,3.76099878,3091.4,3091.3,0.00010943]
[1765745294068,4.51485807,3091.4,3091.3,0.00010943]
[1765745294581,4.04455807,3091.4,3091.3,0.00010943]
[1765745294758,4.51485807,3091.4,3091.3,0.00010943]
[1765745295769,4.04455807,3091.4,3091.3,0.46840943]
[1765745303292,3.80169878,3091.4,3091.3,0.96350943]
[1765745305459,3.80169878,3091.4,3091.3,0.46840943]
[1765745305460,0.001,3091.4,3091.3,0.46840943]
[1765745305791,0.001,3091.4,3091.3,0.96350943]
[1765745308587,0.001,3091.4,3091.3,1.36901343]
[1765745308794,0.001,3091.4,3091.3,4.60389842]
[1765745309097,0.001,3091.4,3091.3,5.75551259]
[1765745309606,0.001,3091.4,3091.3,2.5206276]
[1765745309780,0.001,3091.4,3091.3,0.96350943]
[1765745322011,0.001,3091.4,3091.3,4.19839442]
[1765745322217,0.001,3091.4,3091.3,0.96350943]
[1765745323616,0.001,3091.4,3091.3,4.19839442]
[1765745325089,0.001,3091.4,3091.3,5.02053386]
[1765745326291,0.001,3091.4,3091.3,5.42603786]
[1765745327115,0.001,3091.4,3091.3,6.00651315]
[1765745330021,0.001,3091.4,3091.3,9.51451315]
[1765745342614,0.001,3091.4,3091.3,8.55111315]
[1765745342814,0.001,3091.4,3091.3,9.00471315]
[1765745343316,0.001,3091.4,3091.3,9.46251315]
[1765745349043,0.001,3091.4,3091.3,9.00471315]
[1765745352244,0.001,3091.4,3091.3,9.46251315]
[1765745352424,0.001,3091.4,3091.3,8.64037371]
[1765745355849,0.001,3091.4,3091.3,8.18257371]
[1765745356542,0.001,3091.4,3091.3,8.64037371]
[1765745358146,0.4537,3091.4,3091.3,3.50810943]
[1765745358544,0.9199,3091.4,3091.3,3.50810943]
[1765745359852,0.9199,3091.4,3091.3,0.00010943]
[1765745360032,1.33536137,3091.4,3091.3,0.00010943]
[1765745361122,0.86916137,3091.4,3091.3,0.00010943]
[1765745361318,0.4537,3091.4,3091.3,0.00010943]
[1765745362123,4.15468035,3091.4,3091.3,0.00010943]
[1765745362635,4.28418949,3091.4,3091.3,0.00010943]
[1765745383660,7.95627404,3091.4,3091.3,0.00010943]
[1765745386288,3.81798949,3091.4,3091.3,0.00010943]
[1765745386494,5.00484706,3091.4,3091.3,0.00010943]
[1765745388466,4.52874706,3091.4,3091.3,0.00010943]
[1765745388666,5.00484706,3091.4,3091.3,0.00010943]
[1765745391192,4.52874706,3091.4,3091.3,0.00010943]
[1765745391398,5.00484706,3091.4,3091.3,0.00010943]
[1765745398502,4.52874706,3091.4,3091.3,0.00010943]
[1765745401290,4.99054706,3091.4,3091.3,0.00010943]
[1765745404012,8.665027,3091.4,3091.3,0.00010943]
[1765745404219,8.665027,3091.4,3091.2,0.002]
[1765745404220,0.58047529,3091.3,3091.2,0.002]
[1765745404416,3.857504,3091.0,3090.9,1e-08]
[1765745404592,8.11245923,3091.0,3090.9,1e-08]
[1765745404914,5.36764908,3091.0,3090.9,1e-08]
[1765745405080,1.55614508,3091.0,3090.9,1e-08]
[1765745405282,5.40332604,3091.0,3090.9,1e-08]
[1765745405507,5.94365864,3091.0,3090.9,1e-08]
[1765745406515,9.1788576,3091.0,3090.9,1e-08]
[1765745410090,0.58047529,3090.9,3090.2,0.002]
[1765745410291,4.94527366,3090.7,3090.2,0.002]
[1765745410698,8.77214739,3090.7,3090.2,0.002]
[1765745410900,9.97839362,3090.7,3090.2,0.002]
[1765745411395,9.9814613,3090.7,3090.2,0.002]
[1765745412698,10.3869653,3090.7,3090.2,0.002]
[1765745417926,13.7929653,3090.7,3090.2,0.002]
[1765745420029,10.3869653,3090.7,3090.2,0.002]
[1765745420199,6.30391368,3090.7,3090.2,0.002]
[1765745426530,6.30391368,3090.7,3090.2,0.4619]
[1765745427234,6.30391368,3090.7,3090.6,9.844e-05]
[1765745428022,9.70991368,3090.7,3090.6,9.844e-05]
[1765745428222,6.30391368,3090.7,3090.6,9.844e-05]
[1765745429125,9.98092252,3090.7,3090.6,9.844e-05]
[1765745433241,0.58047529,3090.6,3090.3,0.00010404]
[1765745433447,0.52871843,3090.4,3090.3,0.00010404]
[1765745433942,0.6582905,3090.4,3090.3,0.00010404]
[1765745435312,3.89411757,3090.4,3090.3,0.00010404]
[1765745435927,8.6254017,3090.4,3090.3,0.00010404]
[1765745439433,0.4738,3090.3,3090.0,0.0003043]
[1765745439671,0.05491843,3090.1,3090.0,0.0003043]
[1765745439814,0.56591843,3090.1,3090.0,0.0003043]
[1765745440014,1.06481843,3090.1,3090.0,0.4759043]
[1765745440234,4.88143494,3090.1,3090.0,0.4759043]
[1765745440936,4.88143494,3090.1,3090.0,0.0003043]
[1765745440937,5.35523494,3090.1,3090.0,0.0003043]
[1765745441138,6.38035368,3090.1,3090.0,0.0003043]
[1765745445318,0.58047529,3090.0,3089.8,0.4989]
[1765745445520,3.29126912,3089.9,3089.8,0.4989]
[1765745445717,7.00141981,3089.9,3089.4,0.5009]
[1765745445942,0.05491843,3089.7,3089.6,0.5009]
[1765745446331,0.05491843,3089.7,3089.6,0.9765]
[1765745447944,3.80247861,3089.7,3089.6,0.4776]
[1765745450820,3.80247861,3089.7,3089.6,0.9765]
[1765745452279,3.23656018,3089.7,3089.6,0.9765]
[1765745457645,3.23656018,3089.7,3089.6,0.4776]
[1765745458053,3.23656018,3089.7,3089.6,0.962]
[1765745461925,3.23656018,3089.7,3089.6,0.4776]
[1765745462130,3.23656018,3089.7,3089.6,0.002]
[1765745462131,4.34014311,3089.7,3089.6,0.002]
[1765745462427,5.4137184,3089.7,3089.6,0.00010283]
[1765745462939,5.54331775,3089.7,3089.6,0.00010283]
[1765745464430,5.05021775,3089.7,3089.6,0.00010283]
[1765745464626,4.59941775,3089.7,3089.6,0.00010283]
[1765745465041,5.05011775,3089.7,3089.6,0.00010283]
[1765745467867,5.54331775,3089.7,3089.6,0.00010283]
[1765745468564,0.58047529,3089.6,3089.5,0.002]
[1765745468868,5.27143749,3089.6,3089.5,0.002]
[1765745473764,5.27143749,3089.6,3089.5,0.9377]
[1765745473765,3.23666494,3089.6,3089.5,0.9377]
[1765745473945,3.29158337,3089.6,3089.5,0.9377]
[1765745478340,3.29158337,3089.6,3089.5,0.4533]
[1765745479975,3.80258337,3089.6,3089.5,0.4533]
[1765745487391,3.74766494,3089.6,3089.5,0.9213]
[1765745489697,3.74866494,3089.6,3089.5,0.9213]
[1765745491295,3.23766494,3089.6,3089.5,0.9213]
[1765745491667,0.001,3089.6,3089.5,0.9213]
[1765745493766,0.001,3089.6,3089.5,0.4533]
[1765745493968,0.05591843,3089.6,3089.5,0.9213]
[1765745494193,0.05591843,3089.6,3089.5,0.4533]
[1765745494677,0.05591843,3089.6,3089.5,0.9213]
[1765745495894,4.97764401,3089.6,3089.5,0.002]
[1765745496097,5.47534401,3089.6,3089.5,0.002]
[1765745496676,4.97764401,3089.6,3089.5,0.002]
[1765745496877,5.47534401,3089.6,3089.5,0.002]
[1765745499404,4.97764401,3089.6,3089.5,0.002]
[1765745499908,4.53154401,3089.6,3089.5,0.4745]
[1765745500082,4.53154401,3089.6,3089.5,0.9425]
[1765745500083,4.38405866,3089.6,3089.5,0.9425]
[1765745501009,5.32655866,3089.6,3089.5,0.9425]
[1765745502112,4.81555866,3089.6,3089.5,0.4745]
[1765745502275,4.81555866,3089.6,3089.5,0.9425]
[1765745502276,0.001,3089.6,3089.5,0.9425]
[1765745503611,0.001,3089.6,3089.5,8.84419957]
[1765745503810,0.001,3089.6,3089.5,11.39710775]
[1765745504194,0.001,3089.6,3089.5,10.45460775]
[1765745504394,0.001,3089.6,3089.5,10.58415674]
[1765745506214,0.001,3089.6,3089.5,11.08415674]
[1765745507233,0.001,3089.6,3089.5,14.59215674]
[1765745510818,0.001,3089.6,3089.5,15.10315674]
[1765745513405,0.001,3089.6,3089.5,11.59515674]
[1765745515810,0.001,3089.6,3089.5,11.08415674]
[1765745516000,0.001,3089.6,3089.5,11.59515674]
[1765745523039,0.001,3089.6,3089.5,15.10315674]
[1765745530928,0.001,3089.6,3089.5,11.44490616]
[1765745531857,0.001,3089.6,3089.5,8.42929398]
[1765745532061,0.4591,3089.6,3089.5,8.33824499]
[1765745532235,0.001,3089.6,3089.5,8.81134499]
[1765745532430,0.001,3089.6,3089.5,9.30004499]
[1765745534954,0.001,3089.6,3089.5,5.79204499]
[1765745535455,0.001,3089.6,3089.5,4.83024499]
[1765745535853,0.001,3089.6,3089.5,5.30334499]
[1765745536629,0.001,3089.6,3089.5,5.79204499]
[1765745541169,0.001,3089.6,3089.5,5.28104499]
[1765745541372,0.001,3089.6,3089.5,5.79204499]
[1765745547176,0.001,3089.6,3089.5,7.02833762]
[1765745552079,0.001,3089.6,3089.5,4.7414697]
[1765745553934,0.947,3089.6,3089.5,4.2497697]
[1765745554540,0.4559,3089.6,3089.5,4.2497697]
[1765745555970,0.4559,3089.6,3089.5,3.7387697]
[1765745556267,0.947,3089.6,3089.5,4.2497697]
[1765745559142,0.947,3089.6,3089.5,4.7414697]
[1765745559143,0.001,3089.6,3089.5,4.7414697]